[Event "69th RUS-ch Women Higher League 2019"]
[Site "Yaroslavl"]
[Date "2019.06.28"]
[Round "2.11"]
[White "Khokhlova, Daria"]
[Black "Kovalevskaya, Ekaterina"]
[Result "0-1"]
[ECO "A57"]
[WhiteElo "2234"]
[BlackElo "2413"]
[Annotator "NA"]
[PlyCount "116"]
[EventDate "2019.06.27"]
[EventType "swiss"]
[EventCountry "RUS"]
[SourceTitle "playchess.com"]
[Source "ChessBase"]
[SourceQuality "1"]
[TimeControl "40/5400+30:1800+30"]

1. d4 {[%emt 0:00:00]} Nf6 {[%emt 0:00:00]} 2. c4 {[%emt 0:00:00]} c5 {[%emt 0:00:00]} 3. d5 {[%emt 0:00:00]} b5 {[%emt 0:00:04]} 4. Qc2 {[%emt 0:00:00]} bxc4 {[%emt 0:01:01]} 5. e4 {[%emt 0:00:00]} d6 {[%emt 0:00:18]} 6. Bxc4 {[%emt 0:00:17]} g6 {[%emt 0:00:07]} 7. h3 {[%emt 0:00:22]} Bg7 {[%emt 0:00:15]} 8. Nf3 {[%emt 0:00:03]} O-O {[%emt 0:00:17]} 9. O-O {[%emt 0:00:06]} Nfd7 {[%emt 0:04:01]} 10. Nc3 {[%emt 0:09:25]} Nb6 {[%emt 0:00:33]} 11. Be2 {[%emt 0:01:04]} Ba6 {[%emt 0:02:50]} 12. Bf4 {[%emt 0:03:25]} Bxe2 {[%emt 0:07:29]} 13. Qxe2 {[%emt 0:01:03]} N8d7 {[%emt 0:00:26]} 14. Rad1 {[%emt 0:04:50]} Rb8 {[%emt 0:05:15]} 15. Nb5 {[%emt 0:09:55]} Nc8 {[%emt 0:12:45]} 16. Nc3 {[%emt 0:10:06]} Qa5 {[%emt 0:12:09]} 17. e5 {[%emt 0:09:05]} Qb4 {[%emt 0:16:07]} 18. e6 {[%emt 0:04:32]} Qxf4 {[%emt 0:04:35]} 19. exd7 {[%emt 0:00:07]} Nb6 {[%emt 0:00:07]} 20. Qxe7 {[%emt 0:02:03]} Rfd8 {[%emt 0:06:15]} 21. Rfe1 {[%emt 0:05:29]} Rxd7 {[%emt 0:01:22]} 22. Qe2 {[%emt 0:00:39]} Qb4 {[%emt 0:09:35]} 23. Ng5 {[%emt 0:04:10]} Nc4 {[%emt 0:07:21]} 24. Qg4 {[%emt 0:02:42]} Ne5 {[%emt 0:00:34]} 25. Qg3 {[%emt 0:02:23]} h6 {[%emt 0:01:38]} 26. Nge4 {[%emt 0:01:53]} f5 {[%emt 0:01:06]} 27. a3 {[%emt 0:04:27]} Qa5 {[%emt 0:02:35]} 28. Nd2 {[%emt 0:03:08]} Rxb2 {[%emt 0:02:23]} 29. f4 {[%emt 0:01:51]} Ng4 {[%emt 0:01:47]} 30. hxg4 {[%emt 0:04:01]} Qxc3 {[%emt 0:00:54]} 31. Nf3 {[%emt 0:01:51]} Rb8 {[%emt 0:00:38]} 32. gxf5 {[%emt 0:00:29]} gxf5 {[%emt 0:00:02]} 33. Qg6 {[%emt 0:01:43]} Rf8 {[%emt 0:00:51]} 34. Qe6+ {[%emt 0:00:55]} Rff7 {[%emt 0:00:21]} 35. Rb1 {[%emt 0:05:53]} Kh7 {[%emt 0:00:40]} 36. a4 {[%emt 0:01:40]} Qf6 {[%emt 0:00:39]} 37. a5 {[%emt 0:03:34]} Rfe7 {[%emt 0:00:46]} 38. Qxf6 {[%emt 0:00:07]} Rxe1+ {[%emt 0:00:15]} 39. Nxe1 {[%emt 0:00:17]} Bxf6 {[%emt 0:00:04]} 40. a6 {[%emt 0:00:00]} Kg6 {[%emt 0:00:00]} 41. Nc2 {[%emt 0:04:41]} Re7 {[%emt 0:09:22]} 42. Rb7 {[%emt 0:04:29]} Re2 {[%emt 0:03:33]} 43. Na3 {[%emt 0:00:08]} Ra2 {[%emt 0:00:15]} 44. Nb5 {[%emt 0:00:28]} Rxa6 {[%emt 0:02:46]} 45. Rc7 {[%emt 0:01:36]} Bd4+ {[%emt 0:06:20]} 46. Kh2 {[%emt 0:01:26]} Be3 {[%emt 0:00:36]} 47. g3 {[%emt 0:02:07]} Ra2+ {[%emt 0:04:56]} 48. Kh3 {[%emt 0:00:10]} Bg1 {[%emt 0:01:05]} 49. g4 {[%emt 0:01:00]} fxg4+ {[%emt 0:02:02]} 50. Kxg4 {[%emt 0:00:01]} h5+ {[%emt 0:00:09]} 51. Kf3 {[%emt 0:00:48]} Rf2+ {[%emt 0:02:17]} 52. Kg3 {[%emt 0:01:15]} Rb2 {[%emt 0:00:15]} 53. Nxd6 {[%emt 0:01:11]} Bh2+ {[%emt 0:00:07]} 54. Kf3 {[%emt 0:01:33]} Rb3+ {[%emt 0:00:06]} 55. Kg2 {[%emt 0:00:42]} Bxf4 {[%emt 0:00:11]} 56. Rxa7 {[%emt 0:01:07]} h4 {[%emt 0:03:41]} 57. Ne4 {[%emt 0:01:55]} h3+ {[%emt 0:00:05]} 58. Kf2 {[%emt 0:00:02]} Kf5 {[%emt 0:00:42]} 0-1

[Event "69th RUS-ch Women Higher League 2019"]
[Site "Yaroslavl"]
[Date "2019.06.28"]
[Round "2.12"]
[White "Mokshanova, Elizaveta"]
[Black "Gritsayeva, Oksana"]
[Result "0-1"]
[ECO "B14"]
[WhiteElo "2020"]
[BlackElo "2381"]
[Annotator "NA"]
[PlyCount "84"]
[EventDate "2019.06.27"]
[EventType "swiss"]
[EventCountry "RUS"]
[SourceTitle "playchess.com"]
[Source "ChessBase"]
[SourceQuality "1"]
[TimeControl "40/5400+30:1800+30"]

1. e4 {[%emt 0:00:00]} c6 {[%emt 0:00:00]} 2. d4 {[%emt 0:00:00]} d5 {[%emt 0:00:00]} 3. exd5 {[%emt 0:00:00]} cxd5 {[%emt 0:00:00]} 4. c4 {[%emt 0:00:00]} Nf6 {[%emt 0:00:00]} 5. Nc3 {[%emt 0:00:00]} g6 {[%emt 0:00:06]} 6. cxd5 {[%emt 0:00:04]} Bg7 {[%emt 0:00:05]} 7. Qb3 {[%emt 0:00:35]} O-O {[%emt 0:00:07]} 8. Nge2 {[%emt 0:00:16]} Na6 {[%emt 0:00:47]} 9. Nf4 {[%emt 0:04:49]} Nc7 {[%emt 0:01:11]} 10. Be2 {[%emt 0:01:08]} g5 {[%emt 0:07:47]} 11. Nd3 {[%emt 0:01:17]} h6 {[%emt 0:00:40]} 12. h4 {[%emt 0:01:44]} g4 {[%emt 0:00:14]} 13. Nf4 {[%emt 0:04:57]} b5 {[%emt 0:02:04]} 14. a4 {[%emt 0:03:27]} b4 {[%emt 0:04:14]} 15. Qxb4 {[%emt 0:00:47]} Nfxd5 {[%emt 0:01:11]} 16. Qa5 {[%emt 0:10:24]} Nxf4 {[%emt 0:04:19]} 17. Bxf4 {[%emt 0:00:08]} Ne6 {[%emt 0:00:26]} 18. Qxd8 {[%emt 0:01:27]} Rxd8 {[%emt 0:00:05]} 19. Be3 {[%emt 0:02:22]} Nxd4 {[%emt 0:01:24]} 20. Bxd4 {[%emt 0:01:43]} Bxd4 {[%emt 0:00:19]} 21. Rd1 {[%emt 0:05:31]} Bf5 {[%emt 0:02:28]} 22. Nb5 {[%emt 0:10:36]} Bxb2 {[%emt 0:07:06]} 23. O-O {[%emt 0:21:28]} a5 {[%emt 0:05:34]} 24. Nc7 {[%emt 0:02:20]} Rxd1 {[%emt 0:21:47]} 25. Rxd1 {[%emt 0:00:10]} Ra7 {[%emt 0:00:17]} 26. Rd8+ {[%emt 0:06:40]} Kg7 {[%emt 0:02:09]} 27. Nd5 {[%emt 0:00:27]} Rd7 {[%emt 0:05:56]} 28. Rxd7 {[%emt 0:00:06]} Bxd7 {[%emt 0:00:03]} 29. Nb6 {[%emt 0:04:44]} Be6 {[%emt 0:01:46]} 30. Nc4 {[%emt 0:00:15]} Bc3 {[%emt 0:00:35]} 31. Kh2 {[%emt 0:01:41]} f5 {[%emt 0:00:58]} 32. Kg3 {[%emt 0:02:03]} Bd7 {[%emt 0:02:03]} 33. Nb6 {[%emt 0:06:57]} Be5+ {[%emt 0:02:23]} 34. f4 {[%emt 0:00:04]} gxf3+ {[%emt 0:00:11]} 35. Kxf3 {[%emt 0:00:03]} Bc6+ {[%emt 0:00:05]} 36. Ke3 {[%emt 0:00:05]} Bxg2 {[%emt 0:00:30]} 37. Nc4 {[%emt 0:01:49]} Bc7 {[%emt 0:01:08]} 38. Kd4 {[%emt 0:00:11]} Kf6 {[%emt 0:01:18]} 39. Kc5 {[%emt 0:00:27]} f4 {[%emt 0:01:04]} 40. Kb5 {[%emt 0:00:00]} e5 {[%emt 0:00:00]} 41. Nxa5 {[%emt 0:00:46]} Bxa5 {[%emt 0:05:08]} 42. Kxa5 {[%emt 0:00:04]} f3 {[%emt 0:00:04]} 0-1

[Event "69th RUS-ch Women Higher League 2019"]
[Site "Yaroslavl"]
[Date "2019.06.28"]
[Round "2.13"]
[White "Ambartsumova, Karina"]
[Black "Bykova, Anastasia"]
[Result "1/2-1/2"]
[ECO "D12"]
[WhiteElo "2359"]
[BlackElo "2229"]
[Annotator "NA"]
[PlyCount "81"]
[EventDate "2019.06.27"]
[EventType "swiss"]
[EventCountry "RUS"]
[SourceTitle "playchess.com"]
[Source "ChessBase"]
[SourceQuality "1"]
[TimeControl "40/5400+30:1800+30"]

1. d4 {[%emt 0:00:00]} d5 {[%emt 0:00:00]} 2. c4 {[%emt 0:00:10]} c6 {[%emt 0:00:00]} 3. Nf3 {[%emt 0:00:20]} Nf6 {[%emt 0:00:00]} 4. e3 {[%emt 0:00:22]} Bf5 {[%emt 0:00:11]} 5. Nc3 {[%emt 0:01:23]} e6 {[%emt 0:00:06]} 6. Nh4 {[%emt 0:02:33]} Bg6 {[%emt 0:01:35]} 7. Be2 {[%emt 0:01:20]} dxc4 {[%emt 0:14:45]} 8. Nxg6 {[%emt 0:10:45]} hxg6 {[%emt 0:00:06]} 9. Bxc4 {[%emt 0:00:10]} a6 {[%emt 0:02:02]} 10. Qb3 {[%emt 0:13:26]} Qc7 {[%emt 0:10:36]} 11. Be2 {[%emt 0:07:37]} c5 {[%emt 0:02:53]} 12. dxc5 {[%emt 0:10:05]} Bxc5 {[%emt 0:02:59]} 13. Na4 {[%emt 0:02:23]} Nbd7 {[%emt 0:31:15]} 14. Nxc5 {[%emt 0:19:12]} Nxc5 {[%emt 0:00:05]} 15. Qc2 {[%emt 0:00:04]} Rc8 {[%emt 0:01:08]} 16. b4 {[%emt 0:03:15]} Ncd7 {[%emt 0:03:18]} 17. Qxc7 {[%emt 0:00:11]} Rxc7 {[%emt 0:00:04]} 18. Bb2 {[%emt 0:05:54]} O-O {[%emt 0:00:07]} 19. Bd3 {[%emt 0:00:24]} a5 {[%emt 0:08:22]} 20. bxa5 {[%emt 0:06:03]} Ra8 {[%emt 0:00:03]} 21. Ke2 {[%emt 0:01:53]} Rxa5 {[%emt 0:00:30]} 22. Rhc1 {[%emt 0:01:07]} Rxc1 {[%emt 0:03:12]} 23. Bxc1 {[%emt 0:00:02]} Nc5 {[%emt 0:05:07]} 24. Bd2 {[%emt 0:04:11]} Ra8 {[%emt 0:01:22]} 25. Bc4 {[%emt 0:05:07]} Nfe4 {[%emt 0:04:20]} 26. Bb4 {[%emt 0:01:40]} Rc8 {[%emt 0:03:15]} 27. f3 {[%emt 0:01:13]} Nd6 {[%emt 0:00:51]} 28. Bd3 {[%emt 0:01:52]} Nxd3 {[%emt 0:01:09]} 29. Kxd3 {[%emt 0:00:29]} Nc4 {[%emt 0:00:25]} 30. a3 {[%emt 0:01:14]} f6 {[%emt 0:02:37]} 31. Rb1 {[%emt 0:00:10]} b5 {[%emt 0:00:51]} 32. Rb3 {[%emt 0:00:38]} Kf7 {[%emt 0:00:18]} 33. Bc3 {[%emt 0:00:16]} Rd8+ {[%emt 0:01:04]} 34. Ke2 {[%emt 0:00:11]} g5 {[%emt 0:00:48]} 35. Rxb5 {[%emt 0:00:22]} Nxa3 {[%emt 0:00:15]} 36. Rc5 {[%emt 0:00:46]} Rb8 {[%emt 0:00:15]} 37. Rc7+ {[%emt 0:00:53]} Kg6 {[%emt 0:00:21]} 38. Rc6 {[%emt 0:00:11]} Nb5 {[%emt 0:00:18]} 39. Bd2 {[%emt 0:00:53]} Kf7 {[%emt 0:00:52]} 40. h3 {[%emt 0:00:00]} Ke7 {[%emt 0:00:00]} 41. Rc2 {[%emt 0:03:30]} 1/2-1/2

[Event "69th RUS-ch Women Higher League 2019"]
[Site "Yaroslavl"]
[Date "2019.06.28"]
[Round "2.14"]
[White "Schepetkova, Margarita"]
[Black "Maletina, Tatiana"]
[Result "1/2-1/2"]
[ECO "A40"]
[WhiteElo "2241"]
[BlackElo "2273"]
[Annotator "NA"]
[PlyCount "80"]
[EventDate "2019.06.27"]
[EventType "swiss"]
[EventCountry "RUS"]
[SourceTitle "playchess.com"]
[Source "ChessBase"]
[SourceQuality "1"]
[TimeControl "40/5400+30:1800+30"]

1. d4 {[%emt 0:00:00]} e6 {[%emt 0:00:00]} 2. g3 {[%emt 0:00:00]} f5 {[%emt 0:00:11]} 3. Bg2 {[%emt 0:00:11]} Nf6 {[%emt 0:00:05]} 4. Nf3 {[%emt 0:00:42]} b6 {[%emt 0:01:00]} 5. O-O {[%emt 0:05:47]} Bb7 {[%emt 0:00:05]} 6. c4 {[%emt 0:00:41]} Be7 {[%emt 0:01:17]} 7. d5 {[%emt 0:06:55]} O-O {[%emt 0:19:31]} 8. dxe6 {[%emt 0:11:23]} dxe6 {[%emt 0:00:32]} 9. Qxd8 {[%emt 0:00:07]} Bxd8 {[%emt 0:02:29]} 10. Rd1 {[%emt 0:01:05]} Na6 {[%emt 0:04:28]} 11. Nc3 {[%emt 0:01:06]} Re8 {[%emt 0:00:22]} 12. Bf4 {[%emt 0:09:12]} h6 {[%emt 0:00:06]} 13. h4 {[%emt 0:02:19]} Ng4 {[%emt 0:15:23]} 14. Rac1 {[%emt 0:15:10]} Bf6 {[%emt 0:01:56]} 15. Ne5 {[%emt 0:08:46]} Bxg2 {[%emt 0:00:06]} 16. Nxg4 {[%emt 0:00:03]} fxg4 {[%emt 0:09:42]} 17. Kxg2 {[%emt 0:00:03]} Rad8 {[%emt 0:00:06]} 18. Rxd8 {[%emt 0:07:32]} Rxd8 {[%emt 0:00:06]} 19. Rd1 {[%emt 0:00:09]} Rxd1 {[%emt 0:01:11]} 20. Nxd1 {[%emt 0:00:04]} h5 {[%emt 0:01:04]} 21. f3 {[%emt 0:01:15]} gxf3+ {[%emt 0:00:22]} 22. Kxf3 {[%emt 0:00:18]} Kf7 {[%emt 0:00:11]} 23. b3 {[%emt 0:01:27]} e5 {[%emt 0:00:20]} 24. Bd2 {[%emt 0:00:18]} Nc5 {[%emt 0:01:04]} 25. Nc3 {[%emt 0:03:46]} Ne6 {[%emt 0:03:58]} 26. Be3 {[%emt 0:00:23]} c6 {[%emt 0:01:52]} 27. a4 {[%emt 0:02:11]} Nd4+ {[%emt 0:07:14]} 28. Bxd4 {[%emt 0:00:21]} exd4 {[%emt 0:00:03]} 29. Ne4 {[%emt 0:06:23]} Be7 {[%emt 0:02:34]} 30. Nf2 {[%emt 0:02:54]} Ke6 {[%emt 0:00:50]} 31. Nd3 {[%emt 0:02:22]} Kf5 {[%emt 0:00:23]} 32. Nf2 {[%emt 0:01:38]} Bd6 {[%emt 0:02:36]} 33. Nd3 {[%emt 0:00:04]} Be7 {[%emt 0:01:12]} 34. Nf2 {[%emt 0:00:10]} Bf6 {[%emt 0:00:47]} 35. Nd3 {[%emt 0:00:11]} Be7 {[%emt 0:00:04]} 36. Nf2 {[%emt 0:00:04]} Bd6 {[%emt 0:00:04]} 37. Nd3 {[%emt 0:00:27]} Be7 {[%emt 0:00:04]} 38. Nf2 {[%emt 0:00:07]} Bd6 {[%emt 0:00:05]} 39. Nd3 {[%emt 0:00:05]} Be7 {[%emt 0:00:03]} 40. Nf2 {[%emt 0:00:00]} Bd6 {[%emt 0:00:00] Ke4+ Ke5+} 1/2-1/2

[Event "69th RUS-ch Women Higher League 2019"]
[Site "Yaroslavl"]
[Date "2019.06.28"]
[Round "2.15"]
[White "Bivol, Alina"]
[Black "Utiatskaja, Irina"]
[Result "1/2-1/2"]
[ECO "A37"]
[WhiteElo "2391"]
[BlackElo "2192"]
[Annotator "NA"]
[PlyCount "94"]
[EventDate "2019.06.27"]
[EventType "swiss"]
[EventCountry "RUS"]
[SourceTitle "playchess.com"]
[Source "ChessBase"]
[SourceQuality "1"]
[TimeControl "40/5400+30:1800+30"]

1. Nf3 {[%emt 0:00:00]} c5 {[%emt 0:00:00]} 2. g3 {[%emt 0:00:00]} Nc6 {[%emt 0:00:49]} 3. Bg2 {[%emt 0:00:00]} g6 {[%emt 0:00:57]} 4. c4 {[%emt 0:02:19]} Bg7 {[%emt 0:00:58]} 5. Nc3 {[%emt 0:00:07]} e6 {[%emt 0:00:34]} 6. O-O {[%emt 0:06:00]} Nge7 {[%emt 0:00:27]} 7. d3 {[%emt 0:00:29]} O-O {[%emt 0:00:26]} 8. Bf4 {[%emt 0:04:23]} e5 {[%emt 0:22:26]} 9. Bd2 {[%emt 0:01:18]} d6 {[%emt 0:12:11]} 10. a3 {[%emt 0:00:51]} b6 {[%emt 0:04:01]} 11. Ne1 {[%emt 0:07:10]} Be6 {[%emt 0:01:51]} 12. b4 {[%emt 0:06:12]} Rb8 {[%emt 0:05:49]} 13. Rb1 {[%emt 0:01:26]} Qd7 {[%emt 0:06:49]} 14. Nd5 {[%emt 0:11:33]} Nd8 {[%emt 0:10:36]} 15. e4 {[%emt 0:19:13]} Ndc6 {[%emt 0:06:35]} 16. Nc2 {[%emt 0:01:43]} Nd4 {[%emt 0:00:24]} 17. Nxd4 {[%emt 0:01:05]} cxd4 {[%emt 0:01:28]} 18. f4 {[%emt 0:05:59]} Nxd5 {[%emt 0:02:59]} 19. cxd5 {[%emt 0:00:14]} Bg4 {[%emt 0:00:18]} 20. Qb3 {[%emt 0:00:55]} Bh6 {[%emt 0:05:01]} 21. Rbc1 {[%emt 0:03:52]} Rbc8 {[%emt 0:01:46]} 22. Rxc8 {[%emt 0:06:51]} Rxc8 {[%emt 0:00:32]} 23. Rc1 {[%emt 0:00:47]} exf4 {[%emt 0:04:46]} 24. Rxc8+ {[%emt 0:01:35]} Qxc8 {[%emt 0:00:04]} 25. gxf4 {[%emt 0:01:18]} Be2 {[%emt 0:06:40]} 26. h3 {[%emt 0:00:33]} Qd8 {[%emt 0:00:56]} 27. Kf2 {[%emt 0:04:16]} Bh5 {[%emt 0:00:05]} 28. Kg3 {[%emt 0:00:09]} g5 {[%emt 0:01:04]} 29. f5 {[%emt 0:08:08]} Bg7 {[%emt 0:00:06]} 30. Kf2 {[%emt 0:02:09]} g4 {[%emt 0:00:29]} 31. hxg4 {[%emt 0:01:15]} Qh4+ {[%emt 0:01:51]} 32. Kg1 {[%emt 0:00:00]} Bxg4 {[%emt 0:00:49]} 33. Qc2 {[%emt 0:02:19]} Be5 {[%emt 0:00:13]} 34. Kf1 {[%emt 0:00:27]} Kg7 {[%emt 0:01:37]} 35. Bc1 {[%emt 0:01:36]} Qh2 {[%emt 0:00:40]} 36. Qd2 {[%emt 0:00:17]} h6 {[%emt 0:00:34]} 37. Qf2 {[%emt 0:00:39]} Kg8 {[%emt 0:00:41]} 38. Qd2 {[%emt 0:00:59]} Kg7 {[%emt 0:00:05]} 39. Qf2 {[%emt 0:00:08]} Kh7 {[%emt 0:00:30]} 40. Qd2 {[%emt 0:00:00]} Qh4 {[%emt 0:00:00]} 41. a4 {[%emt 0:03:05]} Bh3 {[%emt 0:11:29]} 42. b5 {[%emt 0:04:54]} Qh5 {[%emt 0:02:03]} 43. Bxh3 {[%emt 0:01:41]} Qxh3+ {[%emt 0:00:04]} 44. Kg1 {[%emt 0:00:13]} Bf6 {[%emt 0:01:05]} 45. Qe2 {[%emt 0:02:06]} Qg3+ {[%emt 0:02:45]} 46. Kf1 {[%emt 0:00:05]} Qh3+ {[%emt 0:12:19]} 47. Kg1 {[%emt 0:01:07]} Qg3+ {[%emt 0:01:29]} 1/2-1/2

[Event "69th RUS-ch Women Higher League 2019"]
[Site "Yaroslavl"]
[Date "2019.06.28"]
[Round "2.16"]
[White "Filippova, Darya"]
[Black "Paramzina, Anastasya"]
[Result "0-1"]
[ECO "A13"]
[WhiteElo "2174"]
[BlackElo "2300"]
[Annotator "NA"]
[PlyCount "76"]
[EventDate "2019.06.27"]
[EventType "swiss"]
[EventCountry "RUS"]
[SourceTitle "playchess.com"]
[Source "ChessBase"]
[SourceQuality "1"]
[TimeControl "40/5400+30:1800+30"]

1. c4 {[%emt 0:00:00]} Nf6 {[%emt 0:00:00]} 2. g3 {[%emt 0:00:00]} e6 {[%emt 0:01:46]} 3. Bg2 {[%emt 0:00:55]} d5 {[%emt 0:00:08]} 4. Nf3 {[%emt 0:04:50]} dxc4 {[%emt 0:00:17]} 5. Qa4+ {[%emt 0:00:26]} Nbd7 {[%emt 0:00:09]} 6. Qxc4 {[%emt 0:00:48]} a6 {[%emt 0:00:21]} 7. Qc2 {[%emt 0:07:21]} c5 {[%emt 0:02:29]} 8. Nc3 {[%emt 0:02:47]} Rb8 {[%emt 0:02:03]} 9. d3 {[%emt 0:06:44]} Bd6 {[%emt 0:00:14]} 10. O-O {[%emt 0:01:10]} O-O {[%emt 0:00:34]} 11. Nd2 {[%emt 0:07:31]} b6 {[%emt 0:02:33]} 12. Nde4 {[%emt 0:06:23]} Bc7 {[%emt 0:23:49]} 13. Rb1 {[%emt 0:09:53]} Qe7 {[%emt 0:01:19]} 14. a3 {[%emt 0:06:09]} Bb7 {[%emt 0:00:39]} 15. b4 {[%emt 0:00:47]} cxb4 {[%emt 0:02:09]} 16. Rxb4 {[%emt 0:01:18]} Rfc8 {[%emt 0:00:41]} 17. Qb1 {[%emt 0:06:11]} b5 {[%emt 0:07:20]} 18. Nxf6+ {[%emt 0:11:25]} Nxf6 {[%emt 0:01:15]} 19. Ne4 {[%emt 0:00:40]} Nxe4 {[%emt 0:22:20]} 20. Bxe4 {[%emt 0:01:52]} Bd6 {[%emt 0:01:28]} 21. Bxb7 {[%emt 0:02:06]} Rxb7 {[%emt 0:01:05]} 22. Rg4 {[%emt 0:01:41]} f5 {[%emt 0:02:31]} 23. Bg5 {[%emt 0:02:01]} Qe8 {[%emt 0:04:13]} 24. Rh4 {[%emt 0:01:10]} Bxa3 {[%emt 0:01:20]} 25. e4 {[%emt 0:00:39]} h6 {[%emt 0:03:13]} 26. Be3 {[%emt 0:01:32]} Be7 {[%emt 0:00:32]} 27. Rh3 {[%emt 0:00:28]} fxe4 {[%emt 0:04:01]} 28. dxe4 {[%emt 0:01:03]} Rc4 {[%emt 0:00:15]} 29. e5 {[%emt 0:01:03]} a5 {[%emt 0:02:44]} 30. Rd1 {[%emt 0:01:06]} a4 {[%emt 0:02:37]} 31. f4 {[%emt 0:04:13]} Bc5 {[%emt 0:01:57]} 32. Bxc5 {[%emt 0:00:21]} Rxc5 {[%emt 0:00:13]} 33. f5 {[%emt 0:01:13]} Rd7 {[%emt 0:02:24]} 34. f6 {[%emt 0:00:55]} Rxd1+ {[%emt 0:04:16]} 35. Qxd1 {[%emt 0:00:07]} Qc8 {[%emt 0:00:08]} 36. Qg4 Rc1+ {[%emt 0:00:04]} 37. Kf2 {[%emt 0:00:54]} Qc2+ {[%emt 0:00:48]} 38. Ke3 {[%emt 0:00:07]} Re1+ {[%emt 0:00:16]} 0-1

[Event "69th RUS-ch Women Higher League 2019"]
[Site "Yaroslavl"]
[Date "2019.06.28"]
[Round "2.17"]
[White "Dimitrova, Aleksandra"]
[Black "Nosacheva, Mariya"]
[Result "1/2-1/2"]
[ECO "C96"]
[WhiteElo "2273"]
[BlackElo "2150"]
[Annotator "NA"]
[PlyCount "102"]
[EventDate "2019.06.27"]
[EventType "swiss"]
[EventCountry "RUS"]
[SourceTitle "playchess.com"]
[Source "ChessBase"]
[SourceQuality "1"]
[TimeControl "40/5400+30:1800+30"]

1. e4 {[%emt 0:00:00]} e5 {[%emt 0:00:00]} 2. Nf3 {[%emt 0:00:00]} Nc6 {[%emt 0:00:00]} 3. Bb5 {[%emt 0:00:00]} a6 {[%emt 0:00:00]} 4. Ba4 {[%emt 0:00:07]} Nf6 {[%emt 0:00:01]} 5. O-O {[%emt 0:02:17]} Be7 {[%emt 0:01:50]} 6. Re1 {[%emt 0:00:11]} b5 {[%emt 0:00:29]} 7. Bb3 {[%emt 0:00:06]} d6 {[%emt 0:00:10]} 8. c3 {[%emt 0:00:18]} O-O {[%emt 0:01:00]} 9. h3 {[%emt 0:00:42]} Na5 {[%emt 0:00:13]} 10. Bc2 {[%emt 0:00:05]} c5 {[%emt 0:00:07]} 11. d4 {[%emt 0:00:08]} Nd7 {[%emt 0:00:22]} 12. Nbd2 {[%emt 0:04:27]} exd4 {[%emt 0:00:17]} 13. cxd4 {[%emt 0:00:08]} Nc6 {[%emt 0:00:36]} 14. d5 {[%emt 0:05:03]} Nce5 {[%emt 0:01:26]} 15. Nh2 {[%emt 0:13:01]} Nb6 {[%emt 0:07:49]} 16. f4 {[%emt 0:01:56]} Ng6 {[%emt 0:00:44]} 17. Ndf1 {[%emt 0:09:30]} f5 {[%emt 0:03:06]} 18. Qh5 {[%emt 0:07:55]} Bf6 {[%emt 0:10:16]} 19. Nf3 {[%emt 0:08:18]} Bd7 {[%emt 0:15:27]} 20. e5 {[%emt 0:09:50]} Be7 {[%emt 0:09:12]} 21. e6 {[%emt 0:08:31]} Nxf4 {[%emt 0:01:42]} 22. Bxf4 {[%emt 0:01:36]} Be8 {[%emt 0:00:08]} 23. Qxf5 {[%emt 0:01:04]} Rxf5 {[%emt 0:00:09]} 24. Bxf5 {[%emt 0:00:02]} Nxd5 {[%emt 0:00:47]} 25. Bh2 {[%emt 0:00:51]} Bc6 {[%emt 0:08:14]} 26. Rad1 {[%emt 0:00:41]} Qb6 {[%emt 0:06:15]} 27. Kh1 {[%emt 0:02:08]} Rf8 {[%emt 0:04:33]} 28. Be4 {[%emt 0:02:45]} Nf4 {[%emt 0:01:20]} 29. Bxc6 {[%emt 0:02:30]} Qxc6 {[%emt 0:00:08]} 30. Bxf4 {[%emt 0:00:15]} Rxf4 {[%emt 0:00:10]} 31. Ne3 {[%emt 0:00:09]} Kf8 {[%emt 0:08:27]} 32. Nd5 {[%emt 0:01:54]} Rf5 {[%emt 0:00:15]} 33. Ne3 {[%emt 0:07:27]} Rf4 {[%emt 0:00:31]} 34. Nd5 {[%emt 0:00:16]} Rf5 {[%emt 0:00:51]} 35. Ne3 {[%emt 0:01:00]} Rh5 {[%emt 0:04:10]} 36. Kh2 {[%emt 0:00:58]} Ke8 {[%emt 0:01:27]} 37. g4 {[%emt 0:03:20]} Rh6 {[%emt 0:00:45]} 38. Nd5 {[%emt 0:00:52]} Rg6 {[%emt 0:06:59]} 39. Rd3 {[%emt 0:03:22]} h5 {[%emt 0:03:16]} 40. g5 {[%emt 0:00:00]} c4 {[%emt 0:00:00]} 41. Rdd1 {[%emt 0:08:38]} h4 {[%emt 0:11:16]} 42. Re4 {[%emt 0:06:29]} Qc5 {[%emt 0:01:20]} 43. Re2 {[%emt 0:03:52]} Kd8 {[%emt 0:10:29]} 44. Nf4 {[%emt 0:06:06]} Rxg5 {[%emt 0:00:07]} 45. Nxg5 {[%emt 0:00:06]} Qxg5 {[%emt 0:00:05]} 46. Rf1 {[%emt 0:02:29]} Qg3+ {[%emt 0:00:56]} 47. Kh1 {[%emt 0:00:03]} g5 {[%emt 0:00:38]} 48. Rg2 {[%emt 0:02:18]} Qe3 {[%emt 0:00:08]} 49. Re2 {[%emt 0:00:06]} Qg3 {[%emt 0:00:12]} 50. Rg2 {[%emt 0:00:08]} Qe3 {[%emt 0:00:09]} 51. Re2 {[%emt 0:00:02]} Qg3 {[%emt 0:01:22]} 1/2-1/2